[Event "Early-Titled-Tuesday-Blitz-January-30-2024"]
[Site "Chess.com"]
[Date "2024.01.30"]
[Round "10"]
[White "chess123456s"]
[Black "carloseduar100"]
[Result "1-0"]
[WhiteElo "2533"]
[BlackElo "2290"]
[TimeControl "180+1"]
[EndTime "10:01:14 PST"]
[Termination "chess123456s won by checkmate"]

1. e4 {[%clk 0:03:00.9]} 1... e6 {[%clk 0:02:59.7]} 2. d4 {[%clk 0:03:00.7]}
2... d5 {[%clk 0:03:00.6]} 3. Nc3 {[%clk 0:03:01.6]} 3... Nf6 {[%clk 0:03:00.8]}
4. e5 {[%clk 0:03:02.1]} 4... Nfd7 {[%clk 0:03:01]} 5. f4 {[%clk 0:03:02.8]}
5... c5 {[%clk 0:03:01.3]} 6. Nf3 {[%clk 0:03:03.7]} 6... Nc6 {[%clk 0:03:01.9]}
7. Be3 {[%clk 0:03:04.3]} 7... Qb6 {[%clk 0:03:02.1]} 8. Na4 {[%clk 0:03:04.7]}
8... Qc7 {[%clk 0:02:54.2]} 9. Nxc5 {[%clk 0:03:00.6]} 9... Nxd4 {[%clk
0:02:51.1]} 10. Bxd4 {[%clk 0:02:55.3]} 10... Bxc5 {[%clk 0:02:50.6]} 11. c3
{[%clk 0:02:55.2]} 11... O-O {[%clk 0:02:50.1]} 12. Bd3 {[%clk 0:02:55.7]} 12...
Bxd4 {[%clk 0:02:50.1]} 13. cxd4 {[%clk 0:02:54.6]} 13... f5 {[%clk 0:02:50.4]}
14. Qd2 {[%clk 0:02:52.5]} 14... a6 {[%clk 0:02:41.9]} 15. O-O {[%clk
0:02:51.3]} 15... b5 {[%clk 0:02:41.8]} 16. Kh1 {[%clk 0:02:51.4]} 16... Nb6
{[%clk 0:02:39.2]} 17. b3 {[%clk 0:02:51]} 17... Qf7 {[%clk 0:02:37.9]} 18. Rg1
{[%clk 0:02:50.6]} 18... Qh5 {[%clk 0:02:35.1]} 19. Qa5 {[%clk 0:02:41.6]} 19...
Rb8 {[%clk 0:02:27.7]} 20. Rac1 {[%clk 0:02:40.4]} 20... Bd7 {[%clk 0:02:25]}
21. Qxa6 {[%clk 0:02:31.5]} 21... h6 {[%clk 0:02:03.2]} 22. Bxb5 {[%clk
0:02:23.6]} 22... Bxb5 {[%clk 0:02:02.6]} 23. Qxb5 {[%clk 0:02:23.6]} 23... g5
{[%clk 0:01:50.4]} 24. Qc6 {[%clk 0:01:56.6]} 24... Rfe8 {[%clk 0:01:43.4]} 25.
Qc2 {[%clk 0:01:27.4]} 25... gxf4 {[%clk 0:00:49.4]} 26. Qd2 {[%clk 0:01:26.8]}
26... Qg4 {[%clk 0:00:42.2]} 27. a4 {[%clk 0:01:16.4]} 27... Rec8 {[%clk
0:00:42.3]} 28. a5 {[%clk 0:01:13.5]} 28... Na8 {[%clk 0:00:39.8]} 29. b4 {[%clk
0:01:12.4]} 29... h5 {[%clk 0:00:35.2]} 30. a6 {[%clk 0:01:06.3]} 30... h4
{[%clk 0:00:34.4]} 31. a7 {[%clk 0:01:01.4]} 31... h3 {[%clk 0:00:33.9]} 32.
axb8=Q {[%clk 0:00:57.8]} 32... Rxb8 {[%clk 0:00:33.1]} 33. gxh3 {[%clk
0:00:57.4]} 33... Qxg1+ {[%clk 0:00:23.4]} 34. Rxg1+ {[%clk 0:00:58.3]} 34...
Kf7 {[%clk 0:00:23.5]} 35. Qg2 {[%clk 0:00:57.5]} 35... Rf8 {[%clk 0:00:21.7]}
36. Qg7+ {[%clk 0:00:54.5]} 36... Ke8 {[%clk 0:00:22.1]} 37. Rc1 {[%clk
0:00:54.9]} 37... Nb6 {[%clk 0:00:22]} 38. Rc6 {[%clk 0:00:54.9]} 38... Rg8
{[%clk 0:00:21.4]} 39. Qxg8+ {[%clk 0:00:54.6]} 39... Kd7 {[%clk 0:00:11.7]} 40.
Qxe6+ {[%clk 0:00:54.2]} 40... Kd8 {[%clk 0:00:11.6]} 41. Rxb6 {[%clk
0:00:55.1]} 41... Kc7 {[%clk 0:00:11.5]} 42. Qd6+ {[%clk 0:00:55.8]} 42... Kc8
{[%clk 0:00:11.5]} 43. Rb8# {[%clk 0:00:56.7]} 1-0

[Event "Early-Titled-Tuesday-Blitz-January-30-2024"]
[Site "Chess.com"]
[Date "2024.01.30"]
[Round "10"]
[White "eightbyeightchess"]
[Black "BeardedNM"]
[Result "1-0"]
[WhiteElo "2393"]
[BlackElo "2182"]
[TimeControl "180+1"]
[EndTime "10:01:16 PST"]
[Termination "eightbyeightchess won by resignation"]

1. e4 {[%clk 0:02:59.8]} 1... e6 {[%clk 0:03:00.1]} 2. d4 {[%clk 0:02:55]} 2...
d5 {[%clk 0:03:00.6]} 3. e5 {[%clk 0:02:36.2]} 3... c5 {[%clk 0:03:00.4]} 4. c3
{[%clk 0:02:36.4]} 4... Qb6 {[%clk 0:03:00.9]} 5. Nf3 {[%clk 0:02:36.3]} 5...
Nc6 {[%clk 0:03:01.6]} 6. Bd3 {[%clk 0:02:35.8]} 6... cxd4 {[%clk 0:03:01]} 7.
O-O {[%clk 0:02:35.6]} 7... Bd7 {[%clk 0:03:00.9]} 8. Re1 {[%clk 0:02:31]} 8...
Nge7 {[%clk 0:02:46.1]} 9. h4 {[%clk 0:02:30.9]} 9... h6 {[%clk 0:02:46.3]} 10.
h5 {[%clk 0:02:29.2]} 10... dxc3 {[%clk 0:02:45.7]} 11. Nxc3 {[%clk 0:02:28.9]}
11... a6 {[%clk 0:02:44.1]} 12. Na4 {[%clk 0:02:15.9]} 12... Qc7 {[%clk
0:02:31.1]} 13. Be3 {[%clk 0:02:09.4]} 13... Nb4 {[%clk 0:02:15.5]} 14. Rc1
{[%clk 0:01:53.5]} 14... Qa5 {[%clk 0:02:04.7]} 15. Nb6 {[%clk 0:01:42.8]} 15...
Nxd3 {[%clk 0:01:56.1]} 16. Qxd3 {[%clk 0:01:37.3]} 16... Bb5 {[%clk 0:01:46]}
17. Qd4 {[%clk 0:01:23.1]} 17... Nf5 {[%clk 0:01:38.3]} 18. Nxa8 {[%clk
0:01:16.9]} 18... Nxd4 {[%clk 0:01:35.1]} 19. Bxd4 {[%clk 0:01:04.5]} 19... Bb4
{[%clk 0:01:22.3]} 20. Rc8+ {[%clk 0:00:14.7]} 20... Kd7 {[%clk 0:01:18.2]} 21.
Rxh8 {[%clk 0:00:15.6]} 21... Bxe1 {[%clk 0:01:14.9]} 22. Nb6+ {[%clk
0:00:15.8]} 22... Qxb6 {[%clk 0:00:41.9]} 23. Bxb6 {[%clk 0:00:16.7]} 23... Bb4
{[%clk 0:00:38.3]} 24. Rg8 {[%clk 0:00:15.7]} 24... Kc6 {[%clk 0:00:36.4]} 25.
Bd4 {[%clk 0:00:15]} 25... g5 {[%clk 0:00:29]} 26. hxg6 {[%clk 0:00:14.7]} 26...
fxg6 {[%clk 0:00:29.1]} 27. Rxg6 {[%clk 0:00:15.6]} 27... Be2 {[%clk 0:00:29.2]}
28. Rxe6+ {[%clk 0:00:14.7]} 28... Kd7 {[%clk 0:00:29]} 29. Rxh6 {[%clk
0:00:15.3]} 29... Bxf3 {[%clk 0:00:29.1]} 30. gxf3 {[%clk 0:00:15.6]} 30... Bd2
{[%clk 0:00:30]} 31. Rd6+ {[%clk 0:00:15]} 31... Kc7 {[%clk 0:00:30.4]} 32. Kg2
{[%clk 0:00:15.4]} 1-0

[Event "Early-Titled-Tuesday-Blitz-January-30-2024"]
[Site "Chess.com"]
[Date "2024.01.30"]
[Round "10"]
[White "stratacticos"]
[Black "Statham_01"]
[Result "1-0"]
[WhiteElo "2058"]
[BlackElo "2529"]
[TimeControl "180+1"]
[EndTime "10:01:16 PST"]
[Termination "stratacticos won by resignation"]

1. b4 {[%clk 0:02:59]} 1... a5 {[%clk 0:03:00.9]} 2. b5 {[%clk 0:02:58.2]} 2...
Ra6 {[%clk 0:03:01.8]} 3. bxa6 {[%clk 0:02:57.2]} 3... Nxa6 {[%clk 0:03:02.7]}
4. e3 {[%clk 0:02:56.2]} 4... b6 {[%clk 0:03:03.6]} 5. Nf3 {[%clk 0:02:54.6]}
5... Bb7 {[%clk 0:03:04.5]} 6. Be2 {[%clk 0:02:53.5]} 6... Qa8 {[%clk
0:03:01.9]} 7. O-O {[%clk 0:02:52.2]} 7... e6 {[%clk 0:03:02]} 8. Bb2 {[%clk
0:02:50.6]} 8... f5 {[%clk 0:03:02.3]} 9. d3 {[%clk 0:02:45.1]} 9... Nf6 {[%clk
0:03:02.8]} 10. Nbd2 {[%clk 0:02:40]} 10... h5 {[%clk 0:03:03]} 11. Re1 {[%clk
0:02:26.5]} 11... h4 {[%clk 0:03:02.3]} 12. h3 {[%clk 0:02:25.9]} 12... Be7
{[%clk 0:03:01.4]} 13. Bxf6 {[%clk 0:02:19.1]} 13... Bxf6 {[%clk 0:02:55.2]} 14.
Rb1 {[%clk 0:02:18.4]} 14... g5 {[%clk 0:02:55.6]} 15. e4 {[%clk 0:02:02.3]}
15... g4 {[%clk 0:02:54.1]} 16. exf5 {[%clk 0:01:56.9]} 16... gxh3 {[%clk
0:02:47.3]} 17. fxe6 {[%clk 0:01:53.8]} 17... hxg2 {[%clk 0:02:47.2]} 18. exd7+
{[%clk 0:01:49.9]} 18... Kd8 {[%clk 0:02:47.1]} 19. Ne4 {[%clk 0:01:44.7]} 19...
Bxe4 {[%clk 0:02:23.8]} 20. dxe4 {[%clk 0:01:43.5]} 20... h3 {[%clk 0:02:24.7]}
21. Bxa6 {[%clk 0:01:33.5]} 21... Qxa6 {[%clk 0:02:16.2]} 22. Qd3 {[%clk
0:01:31.6]} 22... Qb7 {[%clk 0:01:41.7]} 23. Qd5 {[%clk 0:01:30.9]} 23... Qa6
{[%clk 0:01:41.7]} 24. Qf5 {[%clk 0:01:23.5]} 24... Be7 {[%clk 0:01:41.2]} 25.
Qb5 {[%clk 0:01:17.1]} 25... Qb7 {[%clk 0:01:36.5]} 26. Qd5 {[%clk 0:01:16.2]}
26... Qa6 {[%clk 0:01:36]} 27. Rbd1 {[%clk 0:01:12.2]} 27... b5 {[%clk
0:01:19.1]} 28. Kh2 {[%clk 0:00:59.1]} 28... b4 {[%clk 0:01:11]} 29. e5 {[%clk
0:00:52.2]} 29... Qa7 {[%clk 0:01:02.9]} 30. Rd2 {[%clk 0:00:46.1]} 30... Bc5
{[%clk 0:00:52]} 31. e6 {[%clk 0:00:42.8]} 31... Bd6+ {[%clk 0:00:50.2]} 32. Ne5
{[%clk 0:00:37.8]} 32... Ke7 {[%clk 0:00:22.1]} 33. Qxd6+ {[%clk 0:00:34.3]}
33... cxd6 {[%clk 0:00:20.3]} 34. Nc6+ {[%clk 0:00:34.1]} 34... Kf6 {[%clk
0:00:18.1]} 35. Nxa7 {[%clk 0:00:33.5]} 1-0

[Event "Early-Titled-Tuesday-Blitz-January-30-2024"]
[Site "Chess.com"]
[Date "2024.01.30"]
[Round "10"]
[White "AnaKuchava"]
[Black "simonachess"]
[Result "0-1"]
[WhiteElo "2202"]
[BlackElo "2345"]
[TimeControl "180+1"]
[EndTime "10:01:21 PST"]
[Termination "simonachess won on time"]

1. d4 {[%clk 0:03:00.9]} 1... Nf6 {[%clk 0:02:59.2]} 2. Nf3 {[%clk 0:02:59.5]}
2... b6 {[%clk 0:02:58]} 3. c4 {[%clk 0:02:56.1]} 3... Bb7 {[%clk 0:02:54]} 4.
Nc3 {[%clk 0:02:47.9]} 4... e6 {[%clk 0:02:53.2]} 5. a3 {[%clk 0:02:45]} 5...
Ne4 {[%clk 0:02:34.8]} 6. Qc2 {[%clk 0:02:20]} 6... Nxc3 {[%clk 0:02:24.2]} 7.
bxc3 {[%clk 0:02:17.1]} 7... d6 {[%clk 0:02:20.5]} 8. e4 {[%clk 0:02:15.5]} 8...
Nd7 {[%clk 0:02:20.5]} 9. Bd3 {[%clk 0:02:13.1]} 9... g6 {[%clk 0:02:20.6]} 10.
O-O {[%clk 0:02:10.8]} 10... Bg7 {[%clk 0:02:20.9]} 11. Be3 {[%clk 0:02:08.6]}
11... O-O {[%clk 0:02:19.6]} 12. a4 {[%clk 0:02:06.9]} 12... a5 {[%clk
0:02:17.5]} 13. Rab1 {[%clk 0:01:58.2]} 13... Qe7 {[%clk 0:01:56.5]} 14. Bg5
{[%clk 0:01:16.7]} 14... f6 {[%clk 0:01:49.1]} 15. Be3 {[%clk 0:01:15.9]} 15...
e5 {[%clk 0:01:47]} 16. Qb3 {[%clk 0:01:11.9]} 16... Kh8 {[%clk 0:01:42.5]} 17.
Qa3 {[%clk 0:01:11.7]} 17... f5 {[%clk 0:01:36.6]} 18. Bg5 {[%clk 0:00:30.3]}
18... Qf7 {[%clk 0:01:31.2]} 19. Nd2 {[%clk 0:00:28.3]} 19... f4 {[%clk
0:01:27.5]} 20. f3 {[%clk 0:00:25.3]} 20... exd4 {[%clk 0:01:24.8]} 21. cxd4
{[%clk 0:00:22.6]} 21... Bxd4+ {[%clk 0:01:24.8]} 22. Kh1 {[%clk 0:00:22.9]}
22... Nc5 {[%clk 0:01:24.5]} 23. Bc2 {[%clk 0:00:20.8]} 23... Bg7 {[%clk
0:01:14.4]} 24. Rfd1 {[%clk 0:00:19.7]} 24... Bc8 {[%clk 0:01:14.5]} 25. Bb3
{[%clk 0:00:12]} 25... Be6 {[%clk 0:01:14.4]} 26. Qc1 {[%clk 0:00:11.4]} 26...
Nd3 {[%clk 0:01:12.6]} 27. Qc2 {[%clk 0:00:08.4]} 27... Nf2+ {[%clk 0:01:12.7]}
28. Kg1 {[%clk 0:00:09]} 28... Nxd1 {[%clk 0:01:13]} 29. Rxd1 {[%clk 0:00:09.9]}
29... h6 {[%clk 0:01:07]} 30. Bh4 {[%clk 0:00:08.2]} 30... Bd4+ {[%clk
0:01:06.5]} 31. Kh1 {[%clk 0:00:05.7]} 31... c5 {[%clk 0:01:06.7]} 32. Ba2
{[%clk 0:00:03.3]} 32... Bg7 {[%clk 0:01:02.7]} 33. Bb1 {[%clk 0:00:02.7]} 33...
Be5 {[%clk 0:00:50]} 34. Bf2 {[%clk 0:00:02]} 34... g5 {[%clk 0:00:48.7]} 35.
Nb3 {[%clk 0:00:02.3]} 35... g4 {[%clk 0:00:48.4]} 36. Nc1 {[%clk 0:00:02.3]}
36... gxf3 {[%clk 0:00:48.6]} 37. gxf3 {[%clk 0:00:03]} 37... Rg8 {[%clk
0:00:49.2]} 38. Nd3 {[%clk 0:00:03.1]} 38... Qh5 {[%clk 0:00:47.7]} 39. Qe2
{[%clk 0:00:01.9]} 39... Bxc4 {[%clk 0:00:46.9]} 40. Ba2 {[%clk 0:00:01.4]}
40... Bxa2 {[%clk 0:00:44.2]} 41. Nxe5 {[%clk 0:00:01.6]} 41... dxe5 {[%clk
0:00:45.1]} 0-1

[Event "Early-Titled-Tuesday-Blitz-January-30-2024"]
[Site "Chess.com"]
[Date "2024.01.30"]
[Round "10"]
[White "Pastore1978"]
[Black "Shushik"]
[Result "0-1"]
[WhiteElo "2277"]
[BlackElo "2506"]
[TimeControl "180+1"]
[EndTime "10:01:23 PST"]
[Termination "Shushik won by resignation"]

1. e4 {[%clk 0:03:00.9]} 1... e5 {[%clk 0:03:00.2]} 2. Nf3 {[%clk 0:03:00.1]}
2... Nc6 {[%clk 0:03:00.9]} 3. d4 {[%clk 0:03:00.6]} 3... exd4 {[%clk
0:02:59.8]} 4. Nxd4 {[%clk 0:03:01.5]} 4... Bc5 {[%clk 0:02:59.6]} 5. Nb3 {[%clk
0:03:01.5]} 5... Bb6 {[%clk 0:02:59.5]} 6. Nc3 {[%clk 0:03:02.2]} 6... Nf6
{[%clk 0:02:59.2]} 7. Qe2 {[%clk 0:03:02.9]} 7... d6 {[%clk 0:02:59.1]} 8. Be3
{[%clk 0:03:03]} 8... Qe7 {[%clk 0:02:59.1]} 9. f3 {[%clk 0:02:57]} 9... Be6
{[%clk 0:02:57.7]} 10. O-O-O {[%clk 0:02:55.1]} 10... O-O-O {[%clk 0:02:57.7]}
11. Bxb6 {[%clk 0:02:52.8]} 11... axb6 {[%clk 0:02:57.5]} 12. Nd4 {[%clk
0:02:49.5]} 12... Bd7 {[%clk 0:02:53.2]} 13. Ndb5 {[%clk 0:02:41.2]} 13... Rhe8
{[%clk 0:02:47.5]} 14. Qc4 {[%clk 0:02:40.5]} 14... Be6 {[%clk 0:02:33.4]} 15.
Qa4 {[%clk 0:02:39.5]} 15... Kb8 {[%clk 0:02:33.3]} 16. g3 {[%clk 0:02:22.6]}
16... d5 {[%clk 0:02:30.8]} 17. e5 {[%clk 0:02:08.4]} 17... Nd7 {[%clk 0:02:31]}
18. f4 {[%clk 0:01:58.6]} 18... Nc5 {[%clk 0:02:24.3]} 19. Qa3 {[%clk
0:01:58.7]} 19... f6 {[%clk 0:02:20.8]} 20. Bg2 {[%clk 0:01:54]} 20... fxe5
{[%clk 0:02:18.9]} 21. Bxd5 {[%clk 0:01:40.7]} 21... Bxd5 {[%clk 0:01:43.8]} 22.
Nxd5 {[%clk 0:01:41.6]} 22... Rxd5 {[%clk 0:01:43.7]} 23. Rxd5 {[%clk 0:01:42]}
23... exf4 {[%clk 0:01:43.9]} 24. gxf4 {[%clk 0:01:33.1]} 24... Qe4 {[%clk
0:01:31.5]} 25. Rhd1 {[%clk 0:01:25.2]} 25... Qxf4+ {[%clk 0:01:31.7]} 26. Kb1
{[%clk 0:01:24.9]} 26... Qg4 {[%clk 0:01:26.1]} 27. Qg3 {[%clk 0:00:58.4]} 27...
Qxg3 {[%clk 0:01:26.1]} 28. hxg3 {[%clk 0:00:59.3]} 28... Kc8 {[%clk 0:01:20.3]}
29. a3 {[%clk 0:00:42.9]} 29... g6 {[%clk 0:01:17.2]} 30. Rh1 {[%clk 0:00:41.3]}
30... h5 {[%clk 0:01:15.9]} 31. Ka2 {[%clk 0:00:29.4]} 31... Ne4 {[%clk
0:01:12.8]} 32. Rd3 {[%clk 0:00:26.3]} 32... Nf2 {[%clk 0:01:12.4]} 33. Rhd1
{[%clk 0:00:23.2]} 33... Nxd1 {[%clk 0:01:11.7]} 34. Rxd1 {[%clk 0:00:23.1]}
34... Re3 {[%clk 0:01:04.5]} 35. Rf1 {[%clk 0:00:19.5]} 35... Kd7 {[%clk
0:00:58.4]} 36. Rf7+ {[%clk 0:00:19.2]} 36... Ne7 {[%clk 0:00:57.5]} 37. Nc3
{[%clk 0:00:12.9]} 37... Ke8 {[%clk 0:00:52.5]} 38. Rg7 {[%clk 0:00:10.4]} 38...
Kf8 {[%clk 0:00:49.8]} 39. Rh7 {[%clk 0:00:10.8]} 39... Kg8 {[%clk 0:00:49.2]}
40. Nd1 {[%clk 0:00:08.4]} 40... Re1 {[%clk 0:00:48.8]} 41. Rxe7 {[%clk
0:00:02.3]} 41... Rxe7 {[%clk 0:00:47.8]} 42. Nf2 {[%clk 0:00:03.2]} 42... g5
{[%clk 0:00:47.6]} 43. Nh3 {[%clk 0:00:02.7]} 43... Re5 {[%clk 0:00:47.8]} 44.
Nf4 {[%clk 0:00:03.5]} 44... gxf4 {[%clk 0:00:47.4]} 45. gxf4 {[%clk 0:00:04.4]}
45... Rf5 {[%clk 0:00:47.6]} 0-1

[Event "Early-Titled-Tuesday-Blitz-January-30-2024"]
[Site "Chess.com"]
[Date "2024.01.30"]
[Round "10"]
[White "amintabatabaei"]
[Black "MikaelyanArman"]
[Result "1-0"]
[WhiteElo "2956"]
[BlackElo "2854"]
[TimeControl "180+1"]
[EndTime "10:01:24 PST"]
[Termination "amintabatabaei won by resignation"]

1. d4 {[%clk 0:03:00.9]} 1... d5 {[%clk 0:03:00.2]} 2. Nf3 {[%clk 0:02:59.8]}
2... Nf6 {[%clk 0:03:00.3]} 3. Bg5 {[%clk 0:02:59.7]} 3... Ne4 {[%clk
0:03:00.1]} 4. Be3 {[%clk 0:02:58.5]} 4... Bf5 {[%clk 0:02:48.5]} 5. Nh4 {[%clk
0:02:58.4]} 5... Bc8 {[%clk 0:02:43.1]} 6. g3 {[%clk 0:02:57.7]} 6... h5 {[%clk
0:02:11.6]} 7. Bg2 {[%clk 0:02:56.2]} 7... e6 {[%clk 0:01:56.1]} 8. c4 {[%clk
0:02:42.2]} 8... Be7 {[%clk 0:01:54.5]} 9. Nf3 {[%clk 0:02:33.1]} 9... h4 {[%clk
0:01:53.9]} 10. O-O {[%clk 0:02:33.9]} 10... c6 {[%clk 0:01:43.1]} 11. Nc3
{[%clk 0:02:30.9]} 11... Nd7 {[%clk 0:01:38.7]} 12. Qc2 {[%clk 0:02:24.1]} 12...
f5 {[%clk 0:01:36.6]} 13. Rad1 {[%clk 0:02:20.3]} 13... Bf6 {[%clk 0:01:31.8]}
14. b4 {[%clk 0:02:11.3]} 14... Qe7 {[%clk 0:01:27.7]} 15. b5 {[%clk 0:02:11.5]}
15... g5 {[%clk 0:01:20.8]} 16. bxc6 {[%clk 0:02:11.7]} 16... bxc6 {[%clk
0:01:21.7]} 17. cxd5 {[%clk 0:02:12]} 17... cxd5 {[%clk 0:00:47.1]} 18. Nb5
{[%clk 0:02:04.4]} 18... Rb8 {[%clk 0:00:46.4]} 19. Nxa7 {[%clk 0:01:57.5]}
19... Bb7 {[%clk 0:00:41.4]} 20. Rb1 {[%clk 0:01:50.3]} 20... hxg3 {[%clk
0:00:36.8]} 21. hxg3 {[%clk 0:01:39.7]} 21... g4 {[%clk 0:00:28.6]} 22. Rxb7
{[%clk 0:01:33.9]} 22... gxf3 {[%clk 0:00:20.5]} 23. exf3 {[%clk 0:01:17.1]}
23... Qh7 {[%clk 0:00:11]} 24. Rxb8+ {[%clk 0:01:12.7]} 24... Nxb8 {[%clk
0:00:11.9]} 25. Rb1 {[%clk 0:01:10.4]} 25... Qxa7 {[%clk 0:00:06.3]} 26. fxe4
{[%clk 0:01:02.3]} 26... fxe4 {[%clk 0:00:07.2]} 27. Qc8+ {[%clk 0:00:50.5]}
27... Kf7 {[%clk 0:00:07.3]} 28. Rb7+ {[%clk 0:00:50.8]} 28... Be7 {[%clk
0:00:05.5]} 29. Rxe7+ {[%clk 0:00:42.3]} 29... Kxe7 {[%clk 0:00:06.4]} 30. Qxh8
{[%clk 0:00:41.1]} 30... Nc6 {[%clk 0:00:06]} 31. Qg7+ {[%clk 0:00:39.1]} 31...
Kd8 {[%clk 0:00:05.9]} 32. Qxa7 {[%clk 0:00:39.4]} 32... Nxa7 {[%clk 0:00:06.8]}
33. a4 {[%clk 0:00:37.7]} 33... Nc6 {[%clk 0:00:07.2]} 34. f3 {[%clk 0:00:38.2]}
34... exf3 {[%clk 0:00:06.7]} 35. Bxf3 {[%clk 0:00:38.4]} 35... Ke7 {[%clk
0:00:07.4]} 36. Kf2 {[%clk 0:00:37.8]} 36... Kf6 {[%clk 0:00:05.4]} 37. Ke2
{[%clk 0:00:38]} 37... e5 {[%clk 0:00:05.7]} 38. Bxd5 {[%clk 0:00:38.1]} 38...
Nb4 {[%clk 0:00:05.9]} 39. Be4 {[%clk 0:00:37.2]} 1-0

[Event "Early-Titled-Tuesday-Blitz-January-30-2024"]
[Site "Chess.com"]
[Date "2024.01.30"]
[Round "10"]
[White "CarlosjPineror"]
[Black "Shield12"]
[Result "0-1"]
[WhiteElo "2677"]
[BlackElo "2979"]
[TimeControl "180+1"]
[EndTime "10:01:27 PST"]
[Termination "Shield12 won by resignation"]

1. e4 {[%clk 0:02:58.6]} 1... c5 {[%clk 0:03:00.1]} 2. Nf3 {[%clk 0:02:58.5]}
2... e6 {[%clk 0:03:01]} 3. g3 {[%clk 0:02:57.9]} 3... Nc6 {[%clk 0:03:00.5]} 4.
Bg2 {[%clk 0:02:57.9]} 4... Nf6 {[%clk 0:03:00.9]} 5. Qe2 {[%clk 0:02:56.6]}
5... e5 {[%clk 0:02:59.5]} 6. O-O {[%clk 0:02:56.2]} 6... Be7 {[%clk 0:02:59.4]}
7. c3 {[%clk 0:02:55.3]} 7... O-O {[%clk 0:03:00.3]} 8. d4 {[%clk 0:02:54.7]}
8... cxd4 {[%clk 0:03:01.2]} 9. cxd4 {[%clk 0:02:55]} 9... exd4 {[%clk
0:03:02.1]} 10. e5 {[%clk 0:02:54]} 10... Ne8 {[%clk 0:03:00.9]} 11. Rd1 {[%clk
0:02:49.7]} 11... Qb6 {[%clk 0:02:58.9]} 12. Nbd2 {[%clk 0:02:47.7]} 12... d5
{[%clk 0:02:56.8]} 13. Nb3 {[%clk 0:02:46.5]} 13... Bg4 {[%clk 0:02:55.2]} 14.
h3 {[%clk 0:02:46.7]} 14... Bxf3 {[%clk 0:02:55.6]} 15. Bxf3 {[%clk 0:02:39.1]}
15... Nc7 {[%clk 0:02:54.3]} 16. Bf4 {[%clk 0:02:09.1]} 16... Rad8 {[%clk
0:02:51.8]} 17. Nc1 {[%clk 0:01:50.5]} 17... Ne6 {[%clk 0:02:44.3]} 18. Nd3
{[%clk 0:01:47.6]} 18... Nb4 {[%clk 0:02:41.9]} 19. a3 {[%clk 0:01:42.5]} 19...
Nxd3 {[%clk 0:02:40.2]} 20. Rxd3 {[%clk 0:01:43.4]} 20... Nc5 {[%clk 0:02:39.3]}
21. Rdd1 {[%clk 0:01:38.3]} 21... d3 {[%clk 0:02:38.4]} 22. Qf1 {[%clk 0:01:31]}
22... Qxb2 {[%clk 0:02:33.6]} 23. Qg2 {[%clk 0:01:14.6]} 23... Qd4 {[%clk
0:02:21.1]} 24. Rab1 {[%clk 0:01:05.8]} 24... a5 {[%clk 0:02:15.5]} 25. Qf1
{[%clk 0:00:59.4]} 25... g5 {[%clk 0:02:01.8]} 26. Be3 {[%clk 0:00:49.3]} 26...
Qxe5 {[%clk 0:02:01.9]} 27. Bxc5 {[%clk 0:00:47.8]} 27... Bxc5 {[%clk
0:02:02.8]} 28. Kg2 {[%clk 0:00:48.7]} 28... Bxa3 {[%clk 0:01:59.8]} 29. Rxb7
{[%clk 0:00:45.2]} 29... d4 {[%clk 0:01:55.1]} 30. Qxd3 {[%clk 0:00:44.4]} 30...
Bb4 {[%clk 0:01:53.8]} 31. Rc1 {[%clk 0:00:30.3]} 31... Bc3 {[%clk 0:01:53.5]}
32. Rcb1 {[%clk 0:00:30.5]} 32... Bb4 {[%clk 0:01:46.6]} 33. Rc1 {[%clk
0:00:30.3]} 33... Rc8 {[%clk 0:01:45.9]} 34. Rxc8 {[%clk 0:00:24.7]} 34... Rxc8
{[%clk 0:01:46.8]} 35. Be4 {[%clk 0:00:21.6]} 35... h6 {[%clk 0:01:35.3]} 36.
Qf3 {[%clk 0:00:17.9]} 36... Rf8 {[%clk 0:01:31.1]} 37. Bd5 {[%clk 0:00:15.3]}
37... Be7 {[%clk 0:01:23.4]} 38. g4 {[%clk 0:00:12.6]} 38... Kg7 {[%clk
0:01:19.8]} 39. Be4 {[%clk 0:00:06]} 39... a4 {[%clk 0:01:14.7]} 40. Qd3 {[%clk
0:00:05.4]} 40... a3 {[%clk 0:01:12.7]} 41. Ra7 {[%clk 0:00:06]} 41... Bd6
{[%clk 0:01:07]} 42. Ra6 {[%clk 0:00:04.6]} 42... Re8 {[%clk 0:01:03.3]} 43. Bf3
{[%clk 0:00:01.5]} 43... Qh2+ {[%clk 0:01:02.4]} 44. Kf1 {[%clk 0:00:01.6]}
44... Qxh3+ {[%clk 0:01:02.8]} 45. Kg1 {[%clk 0:00:02]} 45... Bh2+ {[%clk
0:01:02.3]} 0-1